fUST/lending_fUST_20250924
["ID","MTS","AMOUNT","RATE_DAILY","PERIOD"]
[387407872,1758717054898,-480.0,0.00020547,2]
[387407873,1758717054907,-498.3342642,0.00020547,2]
[387407874,1758717054916,-480.0,0.00020547,2]
[387407875,1758717054926,-480.0,0.00020547,2]
[387407876,1758717054935,-480.0,0.00020547,2]
[387407877,1758717054945,-559.36,0.00020547,2]
[387407878,1758717054954,-642.71,0.00020547,2]
[387407879,1758717054963,-480.0,0.00020547,2]
[387407880,1758717054973,-480.0,0.00020547,2]
[387407881,1758717054982,-1563.27,0.00020547,2]
[387407882,1758717054992,-480.0,0.00020547,2]
[387407883,1758717055001,-983.42,0.00020547,2]
[387407884,1758717055010,-480.0,0.00020547,2]
[387407885,1758717055020,-480.0,0.00020547,2]
[387407886,1758717055031,-480.0,0.00020547,2]
[387407887,1758717055040,-480.0,0.00020547,2]
[387407888,1758717055050,-480.0,0.00020547,2]
[387407889,1758717055060,-480.0,0.00020547,2]
[387407890,1758717055073,-480.0,0.00020547,2]
[387407891,1758717055082,-480.0,0.00020547,2]
[387407892,1758717055091,-480.0,0.00020547,2]
[387407893,1758717055101,-480.0,0.00020547,2]
[387407894,1758717055112,-493.85943435,0.00020547,2]
[387407895,1758717055121,-480.0,0.00020547,2]
[387407896,1758717055131,-480.0,0.00020547,2]
[387407897,1758717055140,-1168.5,0.00020547,2]
[387407898,1758717055149,-834.86,0.00020547,2]
[387407899,1758717055159,-698.07,0.00020547,2]
[387407900,1758717055168,-480.0,0.00020547,2]
[387407901,1758717055178,-2463.32,0.00020547,2]
[387407902,1758717055187,-855.89,0.00020547,2]
[387407903,1758717055196,-480.0,0.00020547,2]
[387407904,1758717055207,-480.0,0.00020547,2]
[387407905,1758717055218,-480.0,0.00020547,2]
[387407906,1758717055227,-626.95,0.00020547,2]
[387407907,1758717055236,-480.0,0.00020547,2]
[387407908,1758717055246,-480.0,0.00020547,2]
[387407909,1758717055256,-480.0,0.00020547,2]
[387407910,1758717055266,-480.0,0.00020547,2]
[387407911,1758717055276,-1016.88,0.00020547,2]
[387407912,1758717055285,-4337.65,0.00020547,2]
[387407913,1758717055295,-884.3,0.00020547,2]
[387407914,1758717055304,-480.0,0.00020547,2]
[387407915,1758717055313,-480.0,0.00020547,2]
[387407916,1758717055322,-480.0,0.00020547,2]
[387407917,1758717055332,-480.0,0.00020547,2]
[387407918,1758717055341,-614.74,0.00020547,2]
[387407919,1758717055351,-480.0,0.00020547,2]
[387407920,1758717055360,-1093.96,0.00020547,2]
[387407921,1758717055369,-480.0,0.00020547,2]
[387407922,1758717055379,-480.0,0.00020547,2]
[387407923,1758717055388,-480.0,0.00020547,2]
[387407924,1758717055397,-302.55115647,0.00020547,2]
[387407925,1758717055406,-749.94,0.00020547,2]
[387407926,1758717055416,-2365.09,0.00020547,2]
[387407927,1758717055425,-500.0,0.00020548,2]
[387407928,1758717055434,-1579.03916442,0.00020568,2]
[387407929,1758717055443,-1012.6192814,0.00020673,2]
[387407930,1758717055452,-160.0,0.0002068,2]
[387407931,1758717055461,-500.0,0.00020694,2]
[387407932,1758717055470,-500.0,0.00020694,2]
[387407933,1758717055479,-501.68161988,0.00020694,2]
[387407934,1758717055489,-500.0,0.00020694,2]
[387407935,1758717055498,-500.0,0.00020694,2]
[387407936,1758717055508,-500.0,0.00020694,2]
[387407937,1758717055517,-420.0,0.00020792,2]
[387407938,1758717055527,-4800.17000173,0.00020821,2]
[387407939,1758717055536,-480.0,0.00020821,2]
[387407940,1758717055546,-480.0,0.00020821,2]
[387407941,1758717055555,-480.0,0.00020821,2]
[387407942,1758717055564,-480.0,0.00020821,2]
[387407943,1758717055574,-480.0,0.00020821,2]
[387407944,1758717055583,-480.0,0.00020821,2]
[387407945,1758717055593,-480.0,0.00020821,2]
[387407946,1758717055602,-480.0,0.00020821,2]
[387407947,1758717055612,-286.0,0.00020821,2]
[387407948,1758717055621,-309.11087656,0.00020821,2]
[387407949,1758717055630,-480.0,0.00020821,2]
[387407950,1758717055639,-480.0,0.00020821,2]
[387407951,1758717055649,-480.0,0.00020821,2]
[387407952,1758717055659,-151.0,0.00020821,2]
[387407953,1758717055667,-151.0,0.00020821,2]
[387407954,1758717055677,-480.0,0.00020821,2]
[387407955,1758717055739,-480.0,0.00020821,2]
[387407956,1758717055749,-480.0,0.00020821,2]
[387407957,1758717055759,-151.0,0.00020821,2]
[387407958,1758717055768,-480.0,0.00020821,2]
[387407959,1758717055778,-154.545213,0.00020821,2]
[387407960,1758717055788,-480.0,0.00020821,2]
[387407961,1758717055797,-897.88,0.00020821,2]
[387407962,1758717055806,-480.0,0.00020821,2]
[387407963,1758717055816,-480.0,0.00020821,2]
[387407964,1758717055825,-480.0,0.00020821,2]
[387407965,1758717055834,-480.16,0.00020821,2]
[387407966,1758717055843,-480.0,0.00020821,2]
[387407967,1758717055853,-480.0,0.00020821,2]
[387407968,1758717055863,-873.83,0.00020821,2]
[387407969,1758717055872,-621.84,0.00020821,2]
[387407970,1758717055882,-581.65123464,0.00020821,2]
[387407971,1758717055891,-480.0,0.00020821,2]
[387407972,1758717055901,-480.0,0.00020821,2]
[387407973,1758717055910,-495.15613733,0.00020821,2]
[387407974,1758717055919,-480.0,0.00020821,2]
[387407975,1758717055929,-480.0,0.00020821,2]
[387407976,1758717055938,-480.0,0.00020821,2]
[387407977,1758717055948,-229.1703361,0.00020821,2]
[387407978,1758717056096,-429.8996639,0.00020821,2]
[387407979,1758717056107,-374.49,0.00020821,2]
[387407980,1758717056117,-480.0,0.00020821,2]
[387407981,1758717056126,-497.65,0.00020821,2]
[387407982,1758717056136,-480.0,0.00020821,2]
[387407983,1758717056148,-480.0,0.00020821,2]
[387407984,1758717056158,-530.81,0.00020821,2]
[387407985,1758717056166,-480.0,0.00020821,2]
[387407986,1758717056175,-480.0,0.00020821,2]
[387407987,1758717056184,-865.45,0.00020821,2]
[387407988,1758717056194,-212.97542627,0.00020821,2]
[387407989,1758717056203,-480.0,0.00020821,2]
[387407990,1758717056212,-1630.0,0.00020821,2]
[387407991,1758717056222,-480.0,0.00020821,2]
[387407992,1758717056232,-694.09,0.00020821,2]
[387407993,1758717056242,-480.0,0.00020821,2]
[387407994,1758717056251,-480.0,0.00020821,2]
[387407995,1758717056262,-890.27,0.00020821,2]
[387407996,1758717056272,-818.2,0.00020821,2]
[387407997,1758717056281,-480.0,0.00020821,2]
[387407998,1758717056290,-480.0,0.00020821,2]
[387407999,1758717056300,-480.0,0.00020821,2]
[387408000,1758717056309,-480.0,0.00020821,2]
[387408001,1758717056319,-480.0,0.00020821,2]
[387408002,1758717056328,-480.0,0.00020821,2]
[387408003,1758717056337,-1072.49,0.00020821,2]
[387408004,1758717056347,-490.16026629,0.00020821,2]
[387408005,1758717056356,-480.0,0.00020821,2]
[387408006,1758717056366,-480.0,0.00020821,2]
[387408007,1758717056375,-559.36,0.00020821,2]
[387408008,1758717056384,-642.71,0.00020821,2]
[387408009,1758717056394,-480.0,0.00020821,2]
[387408010,1758717056403,-1563.27,0.00020821,2]
[387408011,1758717056412,-480.0,0.00020821,2]
[387408012,1758717056421,-849.23162528,0.00020821,2]
[387408013,1758717056433,-134.18837472,0.00020821,2]
[387408014,1758717056442,-480.0,0.00020821,2]
[387408015,1758717056451,-480.0,0.00020821,2]
[387408016,1758717056460,-222.81836615,0.00020821,2]
[387408017,1758717056493,-264.26933176,0.00020821,2]
[387408018,1758717056503,-269.65066824,0.00020821,2]
[387408019,1758717056514,-210.34933176,0.00020821,2]
[387408020,1758717056579,-480.0,0.00020821,2]
[387408021,1758717056589,-480.0,0.00020821,2]
[387408022,1758717056598,-480.0,0.00020821,2]
[387408023,1758717056607,-365.16797665,0.00020821,2]
[387408024,1758717056619,-114.83202335,0.00020821,2]
[387408025,1758717056628,-480.0,0.00020821,2]
[387408026,1758717056638,-480.0,0.00020821,2]
[387408027,1758717056649,-380.81743113,0.00020821,2]
[387408028,1758717056658,-323.07723549,0.00020821,2]
[387408029,1758717056670,-845.42276451,0.00020821,2]
[387408030,1758717056679,-698.07,0.00020821,2]
[387408031,1758717056689,-834.86,0.00020821,2]
[387408032,1758717056698,-480.0,0.00020821,2]
[387408033,1758717056707,-2463.32,0.00020821,2]
[387408034,1758717056716,-276.58014323,0.00020821,2]
[387408035,1758717056732,-203.41985677,0.00020821,2]
[387408036,1758717056742,-855.89,0.00020821,2]
[387408037,1758717056751,-528.27698255,0.00020821,2]
[387408038,1758717056761,-480.0,0.00020821,2]
[387408039,1758717056770,-626.95,0.00020821,2]
[387408040,1758717056780,-480.0,0.00020821,2]
[387408041,1758717056790,-285.82442956,0.00020821,2]
[387408042,1758717056800,-1016.88,0.00020821,2]
[387408043,1758717056809,-4337.65,0.00020821,2]
[387408044,1758717056819,-448.5874965,0.00020821,2]
[387408045,1758717056932,-480.0,0.00019178,2]
[387408046,1758717056942,-481.54474132,0.00019452,2]
[387408047,1758717056952,-249.55525285,0.00020821,2]
[387408048,1758717056963,-186.15725065,0.00020821,2]
[387408049,1758717056973,-480.0,0.00020821,2]
[387408050,1758717056991,-480.0,0.00020821,2]
[387408051,1758717057007,-480.0,0.00020821,2]
[387408052,1758717057025,-480.0,0.00020821,2]
[387408053,1758717057044,-614.74,0.00020821,2]
[387408054,1758717057062,-480.0,0.00020821,2]
[387408055,1758717057079,-1093.96,0.00020821,2]
[387408056,1758717057096,-480.0,0.00020821,2]
[387408057,1758717057111,-480.0,0.00020821,2]
[387408058,1758717057127,-480.0,0.00020821,2]
[387408059,1758717057146,-749.94,0.00020821,2]
[387408060,1758717057166,-2365.09,0.00020821,2]
[387408061,1758717057179,-500.0,0.00020823,2]
[387408062,1758717057194,-3396.28176754,0.00020972,2]
[387408063,1758717057211,-1000.0,0.00021056,2]
[387408064,1758717057226,-1001.20991974,0.00021056,2]
[387408065,1758717057239,-8851.7826097,0.00021073,2]
[387408066,1758717057253,-19456.155813,0.00021073,2]
[387408067,1758717057268,-1428.5611467,0.00021073,2]
[387408068,1758717057282,-475.35922446,0.00021095,2]
[387408069,1758717057297,-486.31441079,0.00021095,2]
[387408070,1758717057311,-480.0,0.00021095,2]
[387408071,1758717057325,-480.0,0.00021095,2]
[387408072,1758717057339,-480.0,0.00021095,2]
[387408073,1758717057353,-480.0,0.00021095,2]
[387408074,1758717057367,-480.0,0.00021095,2]
[387408075,1758717057380,-480.0,0.00021095,2]
[387408076,1758717057394,-480.0,0.00021095,2]
[387408077,1758717057404,-480.0,0.00021095,2]
[387408078,1758717057413,-480.0,0.00021095,2]
[387408079,1758717057424,-480.0,0.00021095,2]
[387408080,1758717057433,-480.0,0.00021095,2]
[387408081,1758717057442,-480.0,0.00021095,2]
[387408082,1758717057452,-480.0,0.00021095,2]
[387408083,1758717057461,-480.0,0.00021095,2]
[387408084,1758717057470,-897.88,0.00021095,2]
[387408085,1758717057479,-480.0,0.00021095,2]
[387408086,1758717057489,-480.0,0.00021095,2]
[387408087,1758717057498,-480.16,0.00021095,2]
[387408088,1758717057508,-480.0,0.00021095,2]
[387408089,1758717057517,-480.0,0.00021095,2]
[387408090,1758717057528,-873.83,0.00021095,2]
[387408091,1758717057538,-480.0,0.00021095,2]
[387408092,1758717057547,-480.0,0.00021095,2]
[387408093,1758717057701,-452.09285071,0.00021095,2]
[387408094,1758717057719,-480.0,0.00021095,2]
[387408095,1758717057729,-659.07,0.00021095,2]
[387408096,1758717057739,-480.0,0.00021095,2]
[387408097,1758717057748,-497.65,0.00021095,2]
[387408098,1758717057757,-480.0,0.00021095,2]
[387408099,1758717057766,-480.0,0.00021095,2]
[387408100,1758717057776,-530.81,0.00021095,2]
[387408101,1758717057785,-480.0,0.00021095,2]
[387408102,1758717057795,-480.0,0.00021095,2]
[387408103,1758717057804,-865.45,0.00021095,2]
[387408104,1758717057813,-480.0,0.00021095,2]
[387408105,1758717057822,-1630.0,0.00021095,2]
[387408106,1758717057831,-480.0,0.00021095,2]
[387408107,1758717057841,-694.09,0.00021095,2]
[387408108,1758717057851,-480.0,0.00021095,2]
[387408109,1758717057860,-890.27,0.00021095,2]
[387408110,1758717057870,-818.2,0.00021095,2]
[387408111,1758717057879,-480.0,0.00021095,2]
[387408112,1758717057889,-480.0,0.00021095,2]
[387408113,1758717057898,-480.0,0.00021095,2]
[387408114,1758717057907,-480.0,0.00021095,2]
[387408115,1758717057917,-480.0,0.00021095,2]
[387408116,1758717057927,-480.0,0.00021095,2]
[387408117,1758717057936,-1072.49,0.00021095,2]
[387408118,1758717057946,-480.0,0.00021095,2]
[387408119,1758717057955,-480.0,0.00021095,2]
[387408120,1758717057965,-642.71,0.00021095,2]
[387408121,1758717057974,-559.36,0.00021095,2]
[387408122,1758717057983,-480.0,0.00021095,2]
[387408123,1758717057993,-1563.27,0.00021095,2]
[387408124,1758717058002,-480.0,0.00021095,2]
[387408125,1758717058011,-983.42,0.00021095,2]
[387408126,1758717058021,-480.0,0.00021095,2]
[387408127,1758717058030,-480.0,0.00021095,2]
[387408128,1758717058040,-480.0,0.00021095,2]
[387408129,1758717058049,-480.0,0.00021095,2]
[387408130,1758717058059,-480.0,0.00021095,2]
[387408131,1758717058073,-480.0,0.00021095,2]
[387408132,1758717058083,-480.0,0.00021095,2]
[387408133,1758717058092,-480.0,0.00021095,2]
[387408134,1758717058101,-480.0,0.00021095,2]
[387408135,1758717058112,-1168.5,0.00021095,2]
[387408136,1758717058122,-698.07,0.00021095,2]
[387408137,1758717058131,-834.86,0.00021095,2]
[387408138,1758717058142,-375.97499011,0.00021095,2]
[387408139,1758717058153,-151.0,0.00021095,2]
[387408140,1758717058162,-2463.32,0.00021095,2]
[387408141,1758717058171,-480.0,0.00021095,2]
[387408142,1758717058180,-855.89,0.00021095,2]
[387408143,1758717058189,-480.0,0.00021095,2]
[387408144,1758717058199,-626.95,0.00021095,2]
[387408145,1758717058208,-480.0,0.00021095,2]
[387408146,1758717058217,-151.0,0.00021095,2]
[387408147,1758717058227,-1016.88,0.00021095,2]
[387408148,1758717058236,-151.0,0.00021095,2]
[387408149,1758717058245,-4337.65,0.00021095,2]
[387408150,1758717058255,-884.3,0.00021095,2]
[387408151,1758717058265,-480.0,0.00021095,2]
[387408152,1758717058274,-480.0,0.00021095,2]
[387408153,1758717058283,-480.0,0.00021095,2]
[387408154,1758717058293,-480.0,0.00021095,2]
[387408155,1758717058302,-614.74,0.00021095,2]
[387408156,1758717058311,-480.0,0.00021095,2]
[387408157,1758717058320,-1093.96,0.00021095,2]
[387408158,1758717058330,-445.43382704,0.00021095,2]
[387408159,1758717058339,-480.0,0.00021095,2]
[387408160,1758717058349,-480.0,0.00021095,2]
[387408161,1758717058359,-749.94,0.00021095,2]
[387408162,1758717058368,-2365.09,0.00021095,2]
[387408163,1758717058378,-260.0,0.00021228,2]
[387408164,1758717058388,-1000.0,0.00021242,2]
[387408165,1758717058398,-500.0,0.00021242,2]
[387408166,1758717058407,-500.0,0.00021242,2]
[387408167,1758717058417,-12375.41380111,0.00021291,2]
[387408168,1758717058426,-151.0,0.00021296,2]
[387408169,1758717058435,-151.0,0.00021296,2]
[387408170,1758717058444,-151.0,0.00021296,2]
[387408171,1758717058453,-350.55116767,0.00021369,2]
[387408172,1758717058462,-480.0,0.00021369,2]
[387408173,1758717058472,-480.0,0.00021369,2]
[387408174,1758717058481,-480.0,0.00021369,2]
[387408175,1758717058490,-480.0,0.00021369,2]
[387408176,1758717058499,-494.57325951,0.00021369,2]
[387408177,1758717058508,-480.0,0.00021369,2]
[387408178,1758717058517,-480.0,0.00021369,2]
[387408179,1758717058527,-480.0,0.00021369,2]
[387408180,1758717058537,-152.640007,0.00021369,2]
[387408181,1758717058546,-593.97123481,0.00021369,2]
[387408182,1758717058555,-186.813061,0.00021369,2]
[387408183,1758717058565,-480.0,0.00021369,2]
[387408184,1758717058574,-480.0,0.00021369,2]
[387408185,1758717058586,-480.0,0.00021369,2]
[387408186,1758717058596,-480.0,0.00021369,2]
[387408187,1758717058606,-480.0,0.00021369,2]
[387408188,1758717058616,-480.0,0.00021369,2]
[387408189,1758717058625,-584.14302475,0.00021369,2]
[387408190,1758717058644,-897.88,0.00021369,2]
[387408191,1758717058653,-480.0,0.00021369,2]
[387408192,1758717058662,-480.0,0.00021369,2]
[387408193,1758717058671,-480.16,0.00021369,2]
[387408194,1758717058681,-480.0,0.00021369,2]
[387408195,1758717058692,-493.28,0.00021369,2]
[387408196,1758717058701,-873.83,0.00021369,2]
[387408197,1758717058710,-480.0,0.00021369,2]
[387408198,1758717058720,-480.0,0.00021369,2]
[387408199,1758717058729,-659.07,0.00021369,2]
[387408200,1758717058739,-480.0,0.00021369,2]
[387408201,1758717058748,-497.65,0.00021369,2]
[387408202,1758717058757,-480.0,0.00021369,2]
[387408203,1758717058767,-480.0,0.00021369,2]
[387408204,1758717058777,-530.81,0.00021369,2]
[387408205,1758717058786,-480.0,0.00021369,2]
[387408206,1758717058795,-865.45,0.00021369,2]
[387408207,1758717058804,-252.0,0.00021369,2]
[387408208,1758717058813,-1630.0,0.00021369,2]
[387408209,1758717058824,-480.0,0.00021369,2]
[387408210,1758717058834,-694.09,0.00021369,2]
[387408211,1758717058843,-480.0,0.00021369,2]
[387408212,1758717058852,-890.27,0.00021369,2]
[387408213,1758717058862,-818.2,0.00021369,2]
[387408214,1758717058871,-480.0,0.00021369,2]
[387408215,1758717058880,-480.0,0.00021369,2]
[387408216,1758717058890,-480.0,0.00021369,2]
[387408217,1758717058899,-480.0,0.00021369,2]
[387408218,1758717058908,-480.0,0.00021369,2]
[387408219,1758717058918,-480.0,0.00021369,2]
[387408220,1758717058927,-1072.49,0.00021369,2]
[387408221,1758717058936,-480.0,0.00021369,2]
[387408222,1758717058945,-480.0,0.00021369,2]
[387408223,1758717058954,-642.71,0.00021369,2]
[387408224,1758717058964,-559.36,0.00021369,2]
[387408225,1758717058973,-480.0,0.00021369,2]
[387408226,1758717058982,-1563.27,0.00021369,2]
[387408227,1758717058992,-983.42,0.00021369,2]
[387408228,1758717059001,-480.0,0.00021369,2]
[387408229,1758717059011,-480.0,0.00021369,2]
[387408230,1758717059020,-480.0,0.00021369,2]
[387408231,1758717059030,-480.0,0.00021369,2]
[387408232,1758717059039,-480.0,0.00021369,2]
[387408233,1758717059049,-480.0,0.00021369,2]
[387408234,1758717059058,-480.0,0.00021369,2]
[387408235,1758717059072,-480.0,0.00021369,2]
[387408236,1758717059081,-480.0,0.00021369,2]
[387408237,1758717059090,-1168.5,0.00021369,2]
[387408238,1758717059099,-698.07,0.00021369,2]
[387408239,1758717059110,-834.86,0.00021369,2]
[387408240,1758717059119,-2463.32,0.00021369,2]
[387408241,1758717059129,-480.0,0.00021369,2]
[387408242,1758717059138,-855.89,0.00021369,2]
[387408243,1758717059148,-626.95,0.00021369,2]
[387408244,1758717059158,-480.0,0.00021369,2]
[387408245,1758717059168,-1016.88,0.00021369,2]
[387408246,1758717059177,-884.3,0.00021369,2]
[387408247,1758717059187,-480.0,0.00021369,2]
[387408248,1758717059197,-480.0,0.00021369,2]
[387408249,1758717059206,-480.0,0.00021369,2]
[387408250,1758717059215,-480.0,0.00021369,2]
[387408251,1758717059225,-4337.65,0.00021369,2]
[387408252,1758717059234,-614.74,0.00021369,2]
[387408253,1758717059244,-480.0,0.00021369,2]
[387408254,1758717059253,-1093.96,0.00021369,2]
[387408255,1758717059262,-480.0,0.00021369,2]
[387408256,1758717059271,-480.0,0.00021369,2]
[387408257,1758717059281,-749.94,0.00021369,2]
[387408258,1758717059290,-2365.09,0.00021369,2]
[387408259,1758717059300,-179.73040439,0.00021369,2]
[387408260,1758717059309,-1004.37349584,0.00021371,2]
[387408261,1758717059318,-1000.0,0.00021524,2]
[387408262,1758717059327,-1000.0,0.00021524,2]
[387408263,1758717059337,-1000.0,0.00021524,2]
[387408264,1758717059346,-1000.0,0.00021524,2]
[387408265,1758717059355,-1000.0,0.00021524,2]
[387408266,1758717059365,-1000.0,0.00021524,2]
[387408267,1758717059374,-1000.0,0.00021524,2]
[387408268,1758717059383,-1000.0,0.00021524,2]
[387408269,1758717059393,-1000.0,0.00021524,2]
[387408270,1758717059403,-151.0,0.00021524,2]
[387408271,1758717059411,-1000.0,0.00021524,2]
[387408272,1758717059421,-250.0,0.00021524,2]
[387408273,1758717059431,-500.0,0.00021524,2]
[387408274,1758717059440,-151.0,0.00021524,2]
[387408275,1758717059450,-1000.0,0.00021524,2]
[387408276,1758717059460,-399.93188106,0.00021524,2]
[387408277,1758717059469,-151.0,0.00021524,2]
[387408278,1758717059478,-500.0,0.00021524,2]
[387408279,1758717059488,-200.0,0.00021524,2]
[387408280,1758717059498,-200.0,0.00021524,2]
[387408281,1758717059507,-1000.0,0.00021524,2]
[387408282,1758717059517,-152.59014072,0.00021524,2]
[387408283,1758717059527,-200.0,0.00021524,2]
[387408284,1758717059537,-151.0,0.00021524,2]
[387408285,1758717059546,-200.0,0.00021524,2]
[387408286,1758717059556,-1000.0,0.00021524,2]
[387408287,1758717059565,-500.0,0.00021524,2]
[387408288,1758717059575,-151.0,0.00021524,2]
[387408289,1758717059584,-200.0,0.00021524,2]
[387408290,1758717059594,-757.08192936,0.00021524,2]
[387408291,1758717059603,-500.0,0.00021524,2]
[387408292,1758717059613,-200.0,0.00021524,2]
[387408293,1758717059622,-200.0,0.00021524,2]
[387408294,1758717059632,-151.0,0.00021524,2]
[387408295,1758717059642,-200.0,0.00021524,2]
[387408296,1758717059652,-200.0,0.00021524,2]
[387408297,1758717059661,-500.0,0.00021524,2]
[387408298,1758717059670,-500.0,0.00021524,2]
[387408299,1758717059680,-151.0,0.00021524,2]
[387408300,1758717059689,-200.0,0.00021524,2]
[387408301,1758717059698,-200.0,0.00021524,2]
[387408302,1758717059708,-500.0,0.00021524,2]
[387408303,1758717059717,-151.0,0.00021524,2]
[387408304,1758717059726,-200.0,0.00021524,2]
[387408305,1758717059735,-500.0,0.00021524,2]
[387408306,1758717059745,-200.0,0.00021524,2]
[387408307,1758717059755,-500.0,0.00021524,2]
[387408308,1758717059764,-237.20704903,0.00021524,2]
[387408309,1758717059773,-500.0,0.00021524,2]
[387408310,1758717059858,-200.0,0.00021524,2]
[387408311,1758717059868,-200.0,0.00021524,2]
[387408312,1758717059878,-500.0,0.00021524,2]
[387408313,1758717059887,-500.0,0.00021524,2]
[387408314,1758717059896,-200.0,0.00021524,2]
[387408315,1758717059905,-200.0,0.00021524,2]
[387408316,1758717059914,-500.0,0.00021524,2]
[387408317,1758717059924,-381.59001954,0.00021524,2]
[387408318,1758717059933,-200.0,0.00021524,2]
[387408319,1758717059942,-200.0,0.00021524,2]
[387408320,1758717059951,-500.0,0.00021524,2]
[387408321,1758717059960,-200.0,0.00021524,2]
[387408322,1758717059970,-200.0,0.00021524,2]
[387408323,1758717059979,-500.0,0.00021524,2]
[387408324,1758717059988,-200.0,0.00021524,2]
[387408325,1758717059997,-200.0,0.00021524,2]
[387408326,1758717060007,-200.0,0.00021524,2]
[387408327,1758717060016,-200.0,0.00021524,2]
[387408328,1758717060026,-200.0,0.00021524,2]
[387408329,1758717060036,-200.0,0.00021524,2]
[387408330,1758717060045,-350.0,0.00021524,2]
[387408331,1758717060055,-350.0,0.00021524,2]
[387408332,1758717060069,-350.0,0.00021524,2]
[387408333,1758717060079,-350.0,0.00021524,2]
[387408334,1758717060089,-350.0,0.00021524,2]
[387408335,1758717060098,-350.0,0.00021524,2]
[387408336,1758717060108,-350.0,0.00021524,2]
[387408337,1758717060118,-209.40437684,0.00021524,2]
[387408338,1758717060127,-350.0,0.00021524,2]
[387408339,1758717060137,-350.0,0.00021524,2]
[387408340,1758717060147,-350.0,0.00021524,2]
[387408341,1758717060156,-350.0,0.00021524,2]
[387408342,1758717060166,-500.0,0.00021564,2]
[387408343,1758717060175,-500.0,0.00021565,2]
[387408344,1758717060184,-500.0,0.00021565,2]
[387408345,1758717060194,-500.0,0.00021565,2]
[387408346,1758717060204,-511.97124642,0.00021565,2]
[387408347,1758717060213,-500.0,0.00021565,2]
[387408348,1758717060222,-500.0,0.00021583,2]
[387408349,1758717060232,-508.4832216,0.00021583,2]
[387408350,1758717060242,-500.0,0.0002159,2]
[387408351,1758717060251,-500.0,0.0002159,2]
[387408352,1758717060260,-151.0,0.00021596,2]
[387408353,1758717060270,-500.0,0.00021596,2]
[387408354,1758717060281,-1500.0,0.00021604,2]
[387408355,1758717060291,-480.0,0.00021643,2]
[387408356,1758717060301,-480.0,0.00021643,2]
[387408357,1758717060310,-480.0,0.00021643,2]
[387408358,1758717060320,-480.0,0.00021643,2]
[387408359,1758717060329,-480.0,0.00021643,2]
[387408360,1758717060339,-480.0,0.00021643,2]
[387408361,1758717060348,-480.0,0.00021643,2]
[387408362,1758717060357,-480.0,0.00021643,2]
[387408363,1758717060367,-357.66263532,0.00021643,2]
[387408364,1758717060376,-480.0,0.00021643,2]
[387408365,1758717060385,-480.0,0.00021643,2]
[387408366,1758717060394,-480.0,0.00021643,2]
[387408367,1758717060404,-897.88,0.00021643,2]
[387408368,1758717060413,-480.0,0.00021643,2]
[387408369,1758717060422,-480.0,0.00021643,2]
[387408370,1758717060432,-480.16,0.00021643,2]
[387408371,1758717060441,-480.0,0.00021643,2]